[Event "Snabbschacks-SM 2025"]
[Site "Norrköping, Sweden"]
[Date "2025.09.27"]
[Round "1.7"]
[White "Bjorkdahl, Goran"]
[Black "Grahn, Vidar"]
[Result "0-1"]
[TimeControl "25 min + 10 sec/move"]
[BlackTitle "FM"]
[WhiteElo "1805"]
[BlackElo "2236"]

1. c4 {[%clk 00:25:11]} {[%emt 00:00:02]} c6 {[%clk 00:25:09]} {[%emt
00:00:18]} 2. d4 {[%clk 00:25:14]} {[%emt 00:00:07]} d5 {[%clk 00:25:11]}
{[%emt 00:00:08]} 3. Nc3 {[%clk 00:25:15]} {[%emt 00:00:09]} Nf6 {[%clk
00:25:14]} {[%emt 00:00:06]} 4. Nf3 {[%clk 00:25:04]} {[%emt 00:00:21]} e6
{[%clk 00:25:22]} {[%emt 00:00:03]} 5. e3 {[%clk 00:24:43]} {[%emt 00:00:31]}
Nbd7 {[%clk 00:25:27]} {[%emt 00:00:06]} 6. Bd2 {[%clk 00:24:26]} {[%emt
00:00:26]} Bd6 {[%clk 00:24:57]} {[%emt 00:00:40]} 7. c5 {[%clk 00:24:24]}
{[%emt 00:00:12]} Bc7 {[%clk 00:24:52]} {[%emt 00:00:14]} 8. b4 {[%clk
00:24:33]} {[%emt 00:00:02]} a6 {[%clk 00:24:20]} {[%emt 00:00:43]} 9. Bd3
{[%clk 00:24:35]} {[%emt 00:00:07]} e5 {[%clk 00:23:41]} {[%emt 00:00:50]} 10.
dxe5 {[%clk 00:24:33]} {[%emt 00:00:11]} Nxe5 {[%clk 00:23:48]} {[%emt
00:00:03]} 11. Be2 {[%clk 00:24:12]} {[%emt 00:00:31]} O-O {[%clk 00:23:34]}
{[%emt 00:00:24]} 12. O-O {[%clk 00:24:17]} {[%emt 00:00:06]} Ne4 {[%clk
00:21:43]} {[%emt 00:02:00]} 13. Nxe4 {[%clk 00:23:56]} {[%emt 00:00:30]} dxe4
{[%clk 00:21:51]} {[%emt 00:00:02]} 14. Nd4 {[%clk 00:23:51]} {[%emt 00:00:16]}
Qh4 {[%clk 00:21:40]} {[%emt 00:00:21]} 15. f4 {[%clk 00:22:50]} {[%emt
00:01:11]} exf3 {[%clk 00:21:34]} {[%emt 00:00:16]} 16. Bxf3 {[%clk 00:22:45]}
{[%emt 00:00:15]} Nxf3+ {[%clk 00:20:28]} {[%emt 00:01:16]} 17. Nxf3 {[%clk
00:22:44]} {[%emt 00:00:11]} Qh5 {[%clk 00:20:22]} {[%emt 00:00:16]} 18. Qe1
{[%clk 00:22:18]} {[%emt 00:00:37]} Be6 {[%clk 00:19:36]} {[%emt 00:00:56]} 19.
Qh4 {[%clk 00:22:09]} {[%emt 00:00:16]} Qxh4 {[%clk 00:19:38]} {[%emt
00:00:09]} 20. Nxh4 {[%clk 00:22:15]} {[%emt 00:00:04]} Be5 {[%clk 00:19:46]}
{[%emt 00:00:03]} 21. Rab1 {[%clk 00:22:13]} {[%emt 00:00:13]} Bxa2 {[%clk
00:19:45]} {[%emt 00:00:10]} 22. Rbe1 {[%clk 00:22:00]} {[%emt 00:00:22]} Rad8
{[%clk 00:19:30]} {[%emt 00:00:24]} 23. Rf2 {[%clk 00:21:53]} {[%emt 00:00:18]}
Be6 {[%clk 00:19:13]} {[%emt 00:00:27]} 24. Nf3 {[%clk 00:21:44]} {[%emt
00:00:19]} Bf6 {[%clk 00:19:05]} {[%emt 00:00:18]} 25. e4 {[%emt 00:00:47]} Rd3
{[%clk 00:18:51]} {[%emt 00:00:21]} 26. e5 {[%clk 00:21:01]} {[%emt 00:00:18]}
Be7 {[%clk 00:18:58]} {[%emt 00:00:02]} 27. Re3 {[%clk 00:20:47]} {[%emt
00:00:25]} Rfd8 {[%clk 00:18:52]} {[%emt 00:00:14]} 28. Rxd3 {[%clk 00:20:28]}
{[%emt 00:00:30]} Rxd3 {[%clk 00:18:57]} {[%emt 00:00:06]} 29. Ne1 {[%clk
00:20:31]} {[%emt 00:00:07]} Rb3 {[%clk 00:18:47]} {[%emt 00:00:18]} 30. h3
{[%clk 00:20:10]} {[%emt 00:00:33]} a5 {[%clk 00:18:44]} {[%emt 00:00:13]} 31.
Nc2 {[%clk 00:19:53]} {[%emt 00:00:27]} axb4 {[%clk 00:18:48]} {[%emt
00:00:06]} 32. Bxb4 {[%clk 00:19:45]} {[%emt 00:00:19]} Rxb4 {[%clk 00:18:37]}
{[%emt 00:00:20]} 33. Nxb4 {[%clk 00:19:49]} {[%emt 00:00:07]} Bxc5 {[%clk
00:18:45]} {[%emt 00:00:01]} 34. Nd3 {[%clk 00:19:38]} {[%emt 00:00:20]} Bxf2+
{[%clk 00:18:47]} {[%emt 00:00:08]} 35. Kxf2 {[%clk 00:19:38]} {[%emt
00:00:10]} Kf8 {[%clk 00:18:51]} {[%emt 00:00:07]} 36. Ke3 {[%clk 00:19:31]}
{[%emt 00:00:17]} Ke7 {[%clk 00:18:59]} {[%emt 00:00:01]} 37. Kd4 {[%clk
00:18:59]} {[%emt 00:00:42]} Kd7 {[%clk 00:19:07]} {[%emt 00:00:03]} 38. Nc5+
{[%clk 00:18:46]} {[%emt 00:00:24]} Kc7 {[%clk 00:19:12]} {[%emt 00:00:03]} 39.
g4 {[%clk 00:18:39]} {[%emt 00:00:17]} b6 {[%clk 00:19:17]} {[%emt 00:00:05]}
40. Ne4 {[%clk 00:18:31]} {[%emt 00:00:18]} c5+ {[%clk 00:19:16]} {[%emt
00:00:12]} 41. Kc3 {[%clk 00:18:29]} {[%emt 00:00:11]} Kc6 {[%clk 00:19:22]}
{[%emt 00:00:05]} 42. Nf2 {[%clk 00:17:56]} {[%emt 00:00:42]} b5 {[%clk
00:19:23]} {[%emt 00:00:09]} 0-1

[Event "Snabbschacks-SM 2025"]
[Site "Norrköping, Sweden"]
[Date "2025.09.27"]
[Round "3.3"]
[White "Bjorklund, Thomas"]
[Black "Grahn, Vidar"]
[Result "0-1"]
[TimeControl "25 min + 10 sec/move"]
[BlackTitle "FM"]
[WhiteElo "2103"]
[BlackElo "2236"]

1. e4 {[%clk 00:25:18]} {[%emt 00:00:01]} c5 {[%clk 00:25:19]} {[%emt
00:00:02]} 2. c3 {[%clk 00:25:27]} Nf6 {[%clk 00:25:28]} 3. e5 {[%clk
00:25:36]} Nd5 {[%clk 00:25:37]} 4. d4 {[%clk 00:25:45]} cxd4 {[%clk 00:25:47]}
5. cxd4 {[%clk 00:25:55]} d6 {[%clk 00:25:56]} 6. exd6 {[%clk 00:26:03]} {[%emt
00:00:01]} Qxd6 {[%clk 00:26:05]} 7. Nc3 {[%clk 00:26:12]} {[%emt 00:00:01]}
Nc6 {[%clk 00:26:14]} {[%emt 00:00:01]} 8. Nf3 {[%clk 00:26:21]} Bg4 {[%clk
00:26:23]} 9. Be2 {[%clk 00:26:30]} {[%emt 00:00:03]} e6 {[%clk 00:26:28]}
{[%emt 00:00:05]} 10. O-O {[%clk 00:26:38]} {[%emt 00:00:02]} Be7 {[%clk
00:26:35]} {[%emt 00:00:03]} 11. Re1 {[%clk 00:26:39]} {[%emt 00:00:08]} O-O
{[%clk 00:26:33]} {[%emt 00:00:12]} 12. h3 {[%clk 00:26:48]} Bh5 {[%clk
00:26:15]} {[%emt 00:00:28]} 13. a3 {[%clk 00:26:51]} {[%emt 00:00:08]} Rfd8
{[%clk 00:25:56]} {[%emt 00:00:29]} 14. Be3 {[%clk 00:26:48]} {[%emt 00:00:12]}
Rac8 {[%clk 00:24:14]} {[%emt 00:01:52]} 15. Rc1 {[%clk 00:26:57]} {[%emt
00:00:01]} Nxc3 {[%clk 00:23:50]} {[%emt 00:00:34]} 16. bxc3 {[%clk 00:27:01]}
{[%emt 00:00:05]} Qxa3 {[%clk 00:23:39]} {[%emt 00:00:23]} 17. Ng5 {[%clk
00:26:58]} {[%emt 00:00:13]} Bg6 {[%clk 00:23:00]} {[%emt 00:00:48]} 18. Bf3
{[%clk 00:26:22]} {[%emt 00:00:46]} Qa5 {[%clk 00:22:40]} {[%emt 00:00:29]} 19.
Qd2 {[%clk 00:25:42]} {[%emt 00:00:51]} Ne5 {[%clk 00:22:02]} {[%emt 00:00:47]}
20. Ne4 {[%clk 00:23:26]} {[%emt 00:02:26]} Nxf3+ {[%clk 00:21:52]} {[%emt
00:00:20]} 21. gxf3 {[%clk 00:23:35]} a6 {[%clk 00:20:12]} {[%emt 00:01:51]} 22.
Kg2 {[%clk 00:23:18]} {[%emt 00:00:27]} Qd5 {[%clk 00:19:53]} {[%emt 00:00:28]}
23. Ng3 {[%clk 00:23:10]} {[%emt 00:00:19]} h5 {[%clk 00:19:50]} {[%emt
00:00:14]} 24. Bf4 {[%clk 00:23:09]} {[%emt 00:00:11]} b5 {[%clk 00:18:38]}
{[%emt 00:01:22]} 25. Re5 {[%clk 00:23:12]} {[%emt 00:00:06]} Qc6 {[%clk
00:18:26]} {[%emt 00:00:22]} 26. Qe3 {[%clk 00:22:30]} {[%emt 00:00:52]} h4
{[%clk 00:17:53]} {[%emt 00:00:43]} 27. Ne2 {[%clk 00:22:29]} {[%emt 00:00:11]}
Bf6 {[%clk 00:17:36]} {[%emt 00:00:28]} 28. Rc5 {[%clk 00:22:29]} {[%emt
00:00:09]} Qb7 {[%clk 00:17:45]} {[%emt 00:00:01]} 29. Rxc8 {[%clk 00:22:25]}
{[%emt 00:00:15]} Rxc8 {[%clk 00:17:53]} {[%emt 00:00:02]} 30. Be5 {[%clk
00:22:18]} {[%emt 00:00:17]} Bxe5 {[%clk 00:17:32]} {[%emt 00:00:30]} 31. Qxe5
{[%clk 00:22:26]} {[%emt 00:00:02]} Bf5 {[%clk 00:17:30]} {[%emt 00:00:13]} 32.
Nf4 {[%clk 00:22:18]} {[%emt 00:00:18]} Qc7 {[%clk 00:17:25]} {[%emt 00:00:16]}
33. Qe3 {[%clk 00:22:08]} {[%emt 00:00:20]} b4 {[%clk 00:17:26]} {[%emt
00:00:09]} 34. d5 {[%clk 00:22:17]} e5 {[%clk 00:17:17]} {[%emt 00:00:19]} 35.
Nd3 {[%clk 00:21:33]} {[%emt 00:00:53]} b3 {[%clk 00:17:21]} {[%emt 00:00:06]}
36. c4 {[%clk 00:21:25]} {[%emt 00:00:18]} a5 {[%clk 00:17:23]} {[%emt
00:00:08]} 37. c5 {[%clk 00:21:31]} {[%emt 00:00:04]} a4 {[%clk 00:16:59]}
{[%emt 00:00:34]} 38. d6 {[%clk 00:21:33]} {[%emt 00:00:08]} Qb7 {[%clk
00:17:02]} {[%emt 00:00:08]} 39. Qxe5 {[%clk 00:20:22]} {[%emt 00:01:21]} Bxd3
{[%clk 00:15:11]} {[%emt 00:02:01]} 40. c6 {[%clk 00:20:30]} {[%emt 00:00:02]}
b2 {[%clk 00:14:48]} {[%emt 00:00:32]} 41. d7 {[%clk 00:13:29]} {[%emt
00:07:11]} bxc1=Q {[%clk 00:14:23]} {[%emt 00:00:35]} 42. Qe8+ {[%clk
00:13:25]} {[%emt 00:00:14]} Rxe8 {[%clk 00:13:31]} {[%emt 00:01:03]} 43.
dxe8=Q+ {[%clk 00:13:30]} {[%emt 00:00:05]} Kh7 {[%clk 00:13:38]} {[%emt
00:00:02]} 44. cxb7 {[%clk 00:13:30]} {[%emt 00:00:10]} Qf1+ {[%clk 00:13:31]}
{[%emt 00:00:17]} 45. Kh2 {[%clk 00:13:38]} {[%emt 00:00:02]} Qxf2+ {[%clk
00:13:39]} {[%emt 00:00:02]} 46. Kh1 {[%clk 00:13:47]} {[%emt 00:00:01]} Qxf3+
{[%clk 00:13:47]} {[%emt 00:00:02]} 47. Kh2 {[%clk 00:13:55]} {[%emt 00:00:02]}
Bf1 {[%clk 00:13:25]} {[%emt 00:00:33]} 48. b8=Q {[%clk 00:13:58]} {[%emt
00:00:07]} Qg2# {[%clk 00:13:32]} {[%emt 00:00:02]} 0-1

[Event "Snabbschacks-SM 2025"]
[Site "Norrköping, Sweden"]
[Date "2025.09.27"]
[Round "1.8"]
[White "Lindh, Fredrik"]
[Black "Norager, Mattias"]
[Result "1-0"]
[TimeControl "25 min + 10 sec/move"]
[WhiteTitle "FM"]
[WhiteElo "2249"]
[BlackElo "1802"]

1. e4 {[%clk 00:25:18]} {[%emt 00:00:01]} e5 {[%clk 00:25:11]} {[%emt
00:00:09]} 2. Nf3 {[%clk 00:25:25]} {[%emt 00:00:02]} Nc6 {[%clk 00:25:06]}
{[%emt 00:00:16]} 3. Bb5 {[%clk 00:25:34]} {[%emt 00:00:02]} Nf6 {[%clk
00:25:01]} {[%emt 00:00:14]} 4. O-O {[%clk 00:25:40]} {[%emt 00:00:03]} d6
{[%clk 00:23:12]} {[%emt 00:02:00]} 5. d4 {[%clk 00:23:11]} {[%emt 00:02:39]}
exd4 {[%clk 00:21:41]} {[%emt 00:01:40]} 6. Nxd4 {[%clk 00:23:19]} {[%emt
00:00:03]} Bd7 {[%clk 00:21:50]} {[%emt 00:00:01]} 7. Bxc6 {[%clk 00:23:26]}
{[%emt 00:00:03]} bxc6 {[%clk 00:21:27]} {[%emt 00:00:33]} 8. Nc3 {[%clk
00:23:34]} {[%emt 00:00:02]} g6 {[%clk 00:20:10]} {[%emt 00:01:27]} 9. Bg5
{[%clk 00:20:00]} {[%emt 00:03:43]} h6 {[%clk 00:19:42]} {[%emt 00:00:38]} 10.
Bh4 {[%clk 00:20:07]} {[%emt 00:00:03]} c5 {[%clk 00:17:36]} {[%emt 00:02:17]}
11. Nf3 {[%clk 00:18:11]} {[%emt 00:02:06]} g5 {[%clk 00:17:09]} {[%emt
00:00:37]} 12. Bg3 {[%clk 00:18:15]} {[%emt 00:00:06]} Nh5 {[%clk 00:15:43]}
{[%emt 00:01:35]} 13. Re1 {[%clk 00:17:47]} {[%emt 00:00:38]} Nxg3 {[%clk
00:15:40]} {[%emt 00:00:13]} 14. hxg3 {[%clk 00:17:55]} {[%emt 00:00:02]} f6
{[%clk 00:12:48]} {[%emt 00:03:03]} 15. e5 {[%clk 00:08:19]} {[%emt 00:09:46]}
Kf7 {[%clk 00:10:22]} {[%emt 00:02:35]} 16. exf6 {[%clk 00:06:07]} {[%emt
00:02:23]} Bc6 {[%clk 00:10:18]} {[%emt 00:00:13]} 17. Nd5 {[%clk 00:05:29]}
{[%emt 00:00:48]} Rb8 {[%clk 00:07:35]} {[%emt 00:02:54]} 18. b3 {[%clk
00:04:06]} {[%emt 00:01:33]} Qd7 {[%clk 00:07:42]} {[%emt 00:00:02]} 19. c4
{[%clk 00:03:06]} {[%emt 00:01:10]} Bxd5 {[%clk 00:07:19]} {[%emt 00:00:33]} 20.
Qxd5+ {[%clk 00:03:03]} {[%emt 00:00:13]} Kxf6 {[%clk 00:07:24]} {[%emt
00:00:06]} 21. Nd2 {[%clk 00:02:17]} {[%emt 00:00:55]} Bg7 {[%clk 00:05:54]}
{[%emt 00:01:40]} 22. Ne4+ {[%clk 00:02:26]} {[%emt 00:00:01]} Kg6 {[%clk
00:06:03]} 23. Nxc5 {[%clk 00:02:34]} {[%emt 00:00:02]} Qf5 {[%clk 00:02:55]}
{[%emt 00:03:18]} 24. Re6+ {[%clk 00:02:20]} {[%emt 00:00:24]} Bf6 {[%clk
00:03:04]} {[%emt 00:00:01]} 25. Nd7 {[%clk 00:01:57]} {[%emt 00:00:34]} Rbf8
{[%clk 00:02:54]} {[%emt 00:00:20]} 26. Nxf8+ {[%clk 00:01:35]} {[%emt
00:00:32]} Rxf8 {[%clk 00:03:03]} {[%emt 00:00:01]} 27. Rae1 {[%clk 00:01:26]}
{[%emt 00:00:18]} Qxd5 {[%clk 00:03:09]} {[%emt 00:00:04]} 28. cxd5 {[%clk
00:01:34]} {[%emt 00:00:01]} Kf7 {[%clk 00:03:05]} {[%emt 00:00:14]} 29. Rc1
{[%clk 00:01:28]} {[%emt 00:00:16]} c5 {[%clk 00:02:44]} {[%emt 00:00:32]} 30.
Rxd6 {[%clk 00:01:29]} {[%emt 00:00:09]} Bd4 {[%clk 00:02:51]} {[%emt
00:00:03]} 31. Rc2 {[%clk 00:01:36]} {[%emt 00:00:02]} Re8 {[%clk 00:02:49]}
{[%emt 00:00:12]} 32. Kf1 {[%clk 00:01:35]} {[%emt 00:00:11]} Re5 {[%clk
00:02:49]} {[%emt 00:00:10]} 33. Re2 {[%clk 00:01:38]} {[%emt 00:00:07]} Rf5
{[%clk 00:02:54]} {[%emt 00:00:05]} 34. Rd7+ {[%clk 00:01:39]} {[%emt
00:00:09]} Kf8 {[%clk 00:02:48]} {[%emt 00:00:17]} 35. d6 {[%clk 00:01:48]}
{[%emt 00:00:01]} 1-0

[Event "Snabbschacks-SM 2025"]
[Site "Norrköping, Sweden"]
[Date "2025.09.27"]
[Round "3.4"]
[White "Lindh, Fredrik"]
[Black "Stenman, Christoffer"]
[Result "1/2-1/2"]
[TimeControl "25 min + 10 sec/move"]
[WhiteTitle "FM"]
[WhiteElo "2249"]
[BlackElo "2004"]

1. e4 {[%clk 00:23:06]} {[%emt 00:02:13]} c5 {[%clk 00:25:17]} {[%emt
00:00:04]} 2. Nf3 {[%clk 00:23:12]} {[%emt 00:00:04]} Nc6 {[%clk 00:25:24]}
{[%emt 00:00:03]} 3. d4 {[%clk 00:23:20]} {[%emt 00:00:01]} cxd4 {[%clk
00:25:31]} {[%emt 00:00:03]} 4. Nxd4 {[%clk 00:23:29]} {[%emt 00:00:02]} e5
{[%clk 00:25:36]} {[%emt 00:00:04]} 5. Nb5 {[%clk 00:23:37]} {[%emt 00:00:02]}
d6 {[%clk 00:25:44]} {[%emt 00:00:02]} 6. N1c3 {[%clk 00:23:45]} {[%emt
00:00:02]} a6 {[%clk 00:25:53]} {[%emt 00:00:02]} 7. Na3 {[%clk 00:23:53]}
{[%emt 00:00:02]} Be7 {[%clk 00:26:00]} {[%emt 00:00:02]} 8. Be3 {[%clk
00:21:51]} {[%emt 00:02:12]} Nf6 {[%clk 00:25:09]} {[%emt 00:01:01]} 9. Nd5
{[%clk 00:21:59]} {[%emt 00:00:02]} O-O {[%clk 00:24:27]} {[%emt 00:00:52]} 10.
Nxf6+ {[%clk 00:20:21]} {[%emt 00:01:48]} Bxf6 {[%clk 00:24:26]} {[%emt
00:00:12]} 11. Nc4 {[%clk 00:20:29]} {[%emt 00:00:02]} Be7 {[%clk 00:23:53]}
{[%emt 00:00:43]} 12. a4 {[%clk 00:20:10]} {[%emt 00:00:29]} Be6 {[%clk
00:23:55]} {[%emt 00:00:09]} 13. Be2 {[%clk 00:19:38]} {[%emt 00:00:41]} Rb8
{[%clk 00:23:32]} {[%emt 00:00:33]} 14. Bb6 {[%clk 00:18:10]} {[%emt 00:01:38]}
Qd7 {[%clk 00:23:16]} {[%emt 00:00:26]} 15. O-O {[%clk 00:18:17]} {[%emt
00:00:04]} Kh8 {[%clk 00:17:06]} {[%emt 00:06:20]} 16. Qd2 {[%clk 00:16:31]}
{[%emt 00:01:55]} f5 {[%clk 00:15:34]} {[%emt 00:01:42]} 17. exf5 {[%clk
00:14:33]} {[%emt 00:02:09]} Bxf5 {[%clk 00:15:28]} {[%emt 00:00:15]} 18. Rad1
{[%clk 00:14:40]} {[%emt 00:00:02]} Nd4 {[%clk 00:14:39]} {[%emt 00:01:00]} 19.
Bxd4 {[%clk 00:13:08]} {[%emt 00:01:43]} exd4 {[%clk 00:14:47]} {[%emt
00:00:02]} 20. Qxd4 {[%clk 00:12:52]} {[%emt 00:00:26]} Bxc2 {[%clk 00:12:28]}
{[%emt 00:02:29]} 21. Nb6 {[%clk 00:11:17]} {[%emt 00:01:44]} Qf5 {[%clk
00:09:29]} {[%emt 00:03:09]} 22. Bd3 {[%clk 00:06:43]} {[%emt 00:04:45]} Bxd3
{[%clk 00:09:32]} {[%emt 00:00:07]} 23. Qxd3 {[%clk 00:06:51]} {[%emt
00:00:02]} Rbd8 {[%clk 00:06:52]} {[%emt 00:02:49]} 24. Nd5 {[%clk 00:06:16]}
{[%emt 00:00:45]} Qxd3 {[%clk 00:06:01]} {[%emt 00:01:01]} 25. Rxd3 {[%clk
00:06:25]} {[%emt 00:00:02]} Bf6 {[%clk 00:06:00]} {[%emt 00:00:10]} 26. b3
{[%clk 00:06:33]} {[%emt 00:00:02]} g5 {[%clk 00:05:20]} {[%emt 00:00:50]} 27.
g3 {[%clk 00:03:48]} {[%emt 00:02:55]} Kg7 {[%clk 00:04:05]} {[%emt 00:01:25]}
28. f4 {[%clk 00:03:41]} {[%emt 00:00:17]} h6 {[%clk 00:03:07]} {[%emt
00:01:09]} 29. Rfd1 {[%clk 00:03:31]} {[%emt 00:00:19]} gxf4 {[%clk 00:03:03]}
{[%emt 00:00:14]} 30. Nxf4 {[%clk 00:03:39]} {[%emt 00:00:02]} Rde8 {[%clk
00:01:21]} {[%emt 00:01:53]} 31. Rxd6 {[%clk 00:03:28]} {[%emt 00:00:21]} Rf7
{[%clk 00:00:13]} {[%emt 00:01:18]} 32. Rf1 {[%clk 00:01:36]} {[%emt 00:02:01]}
Be5 {[%clk 00:00:15]} {[%emt 00:00:08]} 33. Ne6+ {[%clk 00:01:26]} {[%emt
00:00:20]} Kg8 {[%clk 00:00:13]} {[%emt 00:00:12]} 34. Rb6 {[%clk 00:00:37]}
{[%emt 00:00:59]} Rfe7 {[%clk 00:00:23]} 35. Kg2 {[%clk 00:00:19]} {[%emt
00:00:28]} Rxe6 {[%clk 00:00:31]} {[%emt 00:00:02]} 36. Rxb7 {[%clk 00:00:28]}
R8e7 {[%clk 00:00:33]} {[%emt 00:00:08]} 37. Rxe7 {[%emt 00:00:14]} Rxe7 {[%emt
00:00:01]} 38. b4 {[%clk 00:00:31]} {[%emt 00:00:01]} Rb7 {[%clk 00:00:48]}
{[%emt 00:00:05]} 39. Rb1 {[%clk 00:00:40]} {[%emt 00:00:01]} Bd6 {[%emt
00:00:36]} 1/2-1/2

[Event "Snabbschacks-SM 2025"]
[Site "Norrköping, Sweden"]
[Date "2025.09.27"]
[Round "4.10"]
[White "Wernberg, Hugo"]
[Black "Dolata, Henryk"]
[Result "1-0"]
[TimeControl "25 min + 10 sec/move"]
[WhiteTitle "FM"]
[WhiteElo "2285"]
[BlackElo "1943"]

1. e4 {[%clk 00:25:17]} {[%emt 00:00:02]} e6 {[%clk 00:25:18]} {[%emt
00:00:03]} 2. d4 {[%clk 00:25:26]} {[%emt 00:00:02]} d5 {[%clk 00:25:27]} 3. e5
{[%clk 00:25:34]} {[%emt 00:00:02]} b6 {[%clk 00:25:36]} 4. c3 {[%clk
00:25:19]} {[%emt 00:00:25]} Qd7 {[%clk 00:25:44]} {[%emt 00:00:02]} 5. Nf3
{[%clk 00:25:03]} {[%emt 00:00:26]} Ne7 {[%clk 00:25:41]} {[%emt 00:00:14]} 6.
Na3 {[%clk 00:23:29]} {[%emt 00:01:44]} h5 {[%clk 00:25:36]} {[%emt 00:00:15]}
7. Nc2 {[%clk 00:23:14]} {[%emt 00:00:24]} c5 {[%clk 00:24:45]} {[%emt
00:01:01]} 8. b4 {[%clk 00:22:03]} {[%emt 00:01:21]} cxb4 {[%clk 00:23:19]}
{[%emt 00:01:35]} 9. Nxb4 {[%clk 00:21:39]} {[%emt 00:00:34]} a5 {[%clk
00:21:32]} {[%emt 00:01:57]} 10. Nd3 {[%clk 00:21:47]} {[%emt 00:00:02]} Nbc6
{[%clk 00:21:09]} {[%emt 00:00:34]} 11. Rb1 {[%clk 00:21:25]} {[%emt 00:00:32]}
Qc7 {[%clk 00:20:46]} {[%emt 00:00:33]} 12. Ba3 {[%clk 00:21:15]} {[%emt
00:00:20]} Nf5 {[%clk 00:20:49]} {[%emt 00:00:07]} 13. Bxf8 {[%clk 00:21:21]}
{[%emt 00:00:03]} Kxf8 {[%clk 00:20:46]} {[%emt 00:00:13]} 14. Nf4 {[%clk
00:20:44]} {[%emt 00:00:48]} g6 {[%clk 00:20:42]} {[%emt 00:00:14]} 15. Bd3
{[%clk 00:20:27]} {[%emt 00:00:26]} Nce7 {[%clk 00:20:39]} {[%emt 00:00:14]} 16.
Qb3 {[%clk 00:19:42]} {[%emt 00:00:55]} Rb8 {[%clk 00:20:20]} {[%emt 00:00:29]}
17. O-O {[%clk 00:18:53]} {[%emt 00:00:59]} Kg7 {[%clk 00:20:02]} {[%emt
00:00:28]} 18. Rfc1 {[%clk 00:18:41]} {[%emt 00:00:21]} Rd8 {[%clk 00:16:29]}
{[%emt 00:03:43]} 19. Qc2 {[%clk 00:15:52]} {[%emt 00:02:59]} Bd7 {[%clk
00:15:38]} {[%emt 00:01:01]} 20. Qd2 {[%clk 00:15:24]} {[%emt 00:00:38]} Rh8
{[%clk 00:14:17]} {[%emt 00:01:31]} 21. Nh3 {[%clk 00:11:37]} {[%emt 00:03:56]}
Qd8 {[%clk 00:12:17]} {[%emt 00:02:11]} 22. Qg5 {[%clk 00:11:17]} {[%emt
00:00:29]} Nc6 {[%clk 00:12:14]} {[%emt 00:00:14]} 23. Qf4 {[%clk 00:10:48]}
{[%emt 00:00:38]} Qe7 {[%clk 00:10:57]} {[%emt 00:01:26]} 24. Nhg5 {[%clk
00:10:44]} {[%emt 00:00:15]} Nh6 {[%clk 00:10:28]} {[%emt 00:00:39]} 25. c4
{[%clk 00:09:53]} {[%emt 00:01:01]} Nb4 {[%clk 00:10:16]} {[%emt 00:00:22]} 26.
Qd2 {[%clk 00:09:32]} {[%emt 00:00:31]} Nxd3 {[%clk 00:10:10]} {[%emt
00:00:16]} 27. Qxd3 {[%clk 00:09:38]} {[%emt 00:00:05]} dxc4 {[%clk 00:10:03]}
{[%emt 00:00:17]} 28. Rxc4 {[%clk 00:09:28]} {[%emt 00:00:20]} Rhc8 {[%clk
00:09:47]} {[%emt 00:00:26]} 29. h3 {[%clk 00:07:28]} {[%emt 00:02:10]} Nf5
{[%clk 00:06:59]} {[%emt 00:02:58]} 30. d5 {[%clk 00:05:57]} {[%emt 00:01:41]}
exd5 {[%clk 00:06:12]} {[%emt 00:00:57]} 31. Qxd5 {[%clk 00:05:53]} {[%emt
00:00:14]} Rxc4 {[%clk 00:05:56]} {[%emt 00:00:27]} 32. Qxc4 {[%clk 00:05:58]}
{[%emt 00:00:05]} Be6 {[%clk 00:03:43]} {[%emt 00:02:22]} 33. Nxe6+ {[%clk
00:05:31]} {[%emt 00:00:37]} fxe6 {[%clk 00:03:22]} {[%emt 00:00:32]} 34. Qc6
{[%clk 00:05:14]} {[%emt 00:00:25]} Kf7 {[%clk 00:02:51]} {[%emt 00:00:42]} 35.
h4 {[%clk 00:04:50]} {[%emt 00:00:34]} Kg8 {[%clk 00:02:03]} {[%emt 00:00:57]}
36. Rxb6 {[%clk 00:04:24]} {[%emt 00:00:37]} Rxb6 {[%clk 00:02:10]} {[%emt
00:00:04]} 37. Qxb6 {[%clk 00:04:32]} a4 {[%clk 00:01:59]} {[%emt 00:00:21]} 38.
g3 {[%clk 00:03:34]} {[%emt 00:01:08]} Qd7 {[%clk 00:01:37]} {[%emt 00:00:32]}
39. Ng5 {[%clk 00:02:37]} {[%emt 00:01:06]} Ng7 {[%clk 00:01:08]} {[%emt
00:00:40]} 40. Qb8+ {[%clk 00:02:03]} {[%emt 00:00:44]} Ne8 {[%clk 00:01:17]}
{[%emt 00:00:02]} 41. Ne4 {[%clk 00:01:54]} {[%emt 00:00:18]} Kf7 {[%clk
00:01:00]} {[%emt 00:00:27]} 42. Kh2 {[%clk 00:01:18]} {[%emt 00:00:46]} a3
{[%clk 00:00:40]} {[%emt 00:00:31]} 43. Ng5+ {[%clk 00:01:15]} {[%emt
00:00:12]} Kg7 {[%clk 00:00:45]} {[%emt 00:00:05]} 44. Qb3 {[%clk 00:01:23]}
{[%emt 00:00:02]} Qa7 {[%clk 00:00:41]} {[%emt 00:00:14]} 45. Nxe6+ {[%clk
00:01:27]} {[%emt 00:00:06]} Kh8 {[%clk 00:00:40]} {[%emt 00:00:11]} 46. Qf3
{[%clk 00:01:21]} {[%emt 00:00:15]} Qe7 {[%clk 00:00:43]} {[%emt 00:00:08]} 47.
Ng5 {[%clk 00:01:06]} {[%emt 00:00:24]} Ng7 {[%clk 00:00:36]} {[%emt 00:00:18]}
48. Qa8+ {[%clk 00:00:51]} {[%emt 00:00:25]} Ne8 {[%clk 00:00:41]} {[%emt
00:00:05]} 49. Qa6 {[%clk 00:00:36]} {[%emt 00:00:24]} Kg7 {[%clk 00:00:44]}
{[%emt 00:00:07]} 50. Ne6+ {[%clk 00:00:44]} {[%emt 00:00:02]} Kh8 {[%clk
00:00:50]} {[%emt 00:00:04]} 51. Nf4 {[%clk 00:00:52]} {[%emt 00:00:02]} Qc5
{[%clk 00:00:45]} {[%emt 00:00:16]} 52. Kg2 {[%clk 00:00:43]} {[%emt 00:00:18]}
Ng7 {[%clk 00:00:41]} {[%emt 00:00:14]} 53. Nxg6+ {[%clk 00:00:37]} {[%emt
00:00:16]} Kh7 {[%clk 00:00:50]} {[%emt 00:00:01]} 54. Nf4 {[%clk 00:00:40]}
{[%emt 00:00:07]} Qxe5 {[%clk 00:00:56]} {[%emt 00:00:04]} 55. Qxa3 {[%clk
00:00:45]} {[%emt 00:00:05]} Nf5 {[%clk 00:00:59]} {[%emt 00:00:07]} 56. Qf3
{[%clk 00:00:48]} {[%emt 00:00:06]} Kh6 {[%clk 00:01:01]} {[%emt 00:00:08]} 57.
Qxh5+ {[%clk 00:00:54]} {[%emt 00:00:04]} Kg7 {[%clk 00:01:10]} {[%emt
00:00:01]} 58. Qf3 {[%clk 00:00:46]} {[%emt 00:00:18]} Nd4 {[%clk 00:01:12]}
{[%emt 00:00:09]} 59. Qe3 {[%clk 00:00:46]} {[%emt 00:00:09]} 1-0